bitfinex/quotes_SOLUSD_20241115
["timestamp","ask_amount","ask_price","bid_price","bid_amount"]
[1731647369458,38.16206327,206.57,206.51,38.16206327]
[1731647369758,38.16206327,206.58,206.52,38.16206327]
[1731647370073,38.16206327,206.56,206.49,38.16206327]
[1731647370464,38.16206327,206.55,206.49,38.16206327]
[1731647370681,38.16206327,206.57,206.51,38.16206327]
[1731647370879,38.16206327,206.59,206.52,38.16206327]
[1731647371266,38.16206327,206.59,206.53,38.16206327]
[1731647371462,38.16206327,206.59,206.54,16.9457]
[1731647371805,6.4131,206.69,206.58,38.16206327]
[1731647371988,38.16206327,206.67,206.6,38.16206327]
[1731647372287,38.16206327,206.68,206.61,38.16206327]
[1731647372579,38.16206327,206.69,206.63,38.16206327]
[1731647372787,38.16206327,206.7,206.63,38.16206327]
[1731647373160,38.16206327,206.69,206.63,38.16206327]
[1731647373360,38.16206327,206.7,206.63,38.16206327]
[1731647373581,38.16206327,206.71,206.64,38.16206327]
[1731647373780,38.16206327,206.68,206.62,38.16206327]
[1731647374294,38.16206327,206.69,206.63,38.16206327]
[1731647374773,38.16206327,206.7,206.64,38.16206327]
[1731647374974,38.16206327,206.71,206.64,38.16206327]
[1731647375367,38.16206327,206.7,206.63,38.16206327]
[1731647375567,38.16206327,206.69,206.63,38.16206327]
[1731647375765,38.16206327,206.69,206.64,16.9376]
[1731647376373,38.16206327,206.7,206.64,16.9376]
[1731647376808,38.16206327,206.68,206.64,12.0983]
[1731647378473,38.16206327,206.69,206.64,12.0983]
[1731647378671,24.2701457,206.74,206.64,12.0983]
[1731647378672,38.16206327,206.67,206.64,12.0983]
[1731647378894,38.16206327,206.65,206.64,12.0983]
[1731647379488,38.16206327,206.69,206.64,12.0983]
[1731647379684,38.16206327,206.68,206.64,12.0983]
[1731647379878,38.16206327,206.66,206.64,12.0983]
[1731647380290,38.16206327,206.68,206.64,12.0983]
[1731647380488,38.16206327,206.69,206.64,12.0983]
[1731647380795,38.16206327,206.69,206.64,16.9376]
[1731647381279,38.16206327,206.68,206.64,16.9376]
[1731647381473,38.16206327,206.69,206.64,16.9376]
[1731647382191,38.16206327,206.68,206.64,12.0983]
[1731647382389,38.16206327,206.67,206.64,12.0983]
[1731647382578,38.16206327,206.68,206.64,12.0983]
[1731647382985,38.16206327,206.67,206.64,12.0983]
[1731647383505,29.1072457,206.74,206.64,12.0983]
[1731647383506,38.16206327,206.69,206.64,12.0983]
[1731647384003,38.16206327,206.7,206.64,12.0983]
[1731647384304,38.16206327,206.7,206.64,38.16206327]
[1731647384501,38.16206327,206.7,206.66,12.0971]
[1731647386096,38.16206327,206.69,206.66,12.0971]
[1731647386291,38.16206327,206.68,206.66,12.0971]
[1731647387391,38.16206327,206.68,206.62,24.8398]
[1731647387586,38.16206327,206.68,206.62,36.9393]
[1731647387908,38.16206327,206.67,206.62,36.9393]
[1731647388494,38.16206327,206.67,206.62,16.9393]
[1731647388807,23.4569856,206.65,206.62,16.9393]
[1731647389427,23.4569856,206.63,206.58,12.1018]
[1731647389583,23.4569856,206.65,206.58,40.3994856]
[1731647389790,23.4569856,206.66,206.59,23.4569856]
[1731647390091,23.4569856,206.66,206.58,16.9425]
[1731647390092,23.4569856,206.64,206.58,16.9425]
[1731647390287,23.4569856,206.62,206.58,16.9425]
[1731647390596,23.4569856,206.64,206.58,16.9425]
[1731647391111,23.4569856,206.66,206.59,23.4569856]
[1731647391410,23.4569856,206.67,206.6,23.4569856]
[1731647391713,23.4569856,206.67,206.61,16.94]
[1731647393104,23.4569856,206.62,206.61,12.1]
[1731647393308,23.4569856,206.63,206.61,12.1]
[1731647393608,23.4569856,206.64,206.61,12.1]
[1731647393811,23.4569856,206.62,206.58,4.8407]
[1731647394107,23.4569856,206.62,206.58,16.9425]
[1731647394287,23.4569856,206.63,206.58,16.9425]
[1731647394785,23.4569856,206.64,206.58,16.9425]
[1731647394999,23.4569856,206.65,206.58,40.3994856]
[1731647395308,181.5109,206.72,206.59,23.4569856]
[1731647395309,23.4569856,206.66,206.59,23.4569856]
[1731647396713,23.4569856,206.64,206.58,41.1461]
[1731647397087,23.4569856,206.63,206.58,41.1461]
[1731647397417,23.4569856,206.64,206.58,16.9425]
[1731647398517,23.4569856,206.68,206.61,23.4569856]
[1731647399007,23.4569856,206.66,206.59,23.4569856]
[1731647400083,23.4569856,206.65,206.6,16.9408]
[1731647400307,23.4569856,206.64,206.6,16.9408]
[1731647401223,23.4569856,206.67,206.6,40.3977856]
[1731647401403,23.4569856,206.69,206.62,23.4569856]
[1731647401706,23.4569856,206.63,206.6,12.1006]
[1731647402011,28.615084,206.69,206.57,17.06879]
[1731647402507,23.776884,206.7,206.57,17.06879]
[1731647403213,23.4569856,206.63,206.57,17.06879]
[1731647403512,23.4569856,206.64,206.57,40.5257756]
[1731647403698,23.4569856,206.65,206.58,23.4569856]
[1731647403894,23.4569856,206.65,206.59,16.9417]
[1731647404094,23.4569856,206.66,206.59,40.3986856]
[1731647404395,23.776884,206.7,206.59,40.3986856]
[1731647404396,23.4569856,206.7,206.63,23.4569856]
[1731647404593,23.4569856,206.71,206.64,23.4569856]
[1731647405187,23.4569856,206.7,206.63,23.4569856]
[1731647405790,23.4569856,206.69,206.62,23.4569856]
[1731647405991,23.4569856,206.63,206.59,29.0428]
[1731647406187,23.4569856,206.6,206.57,0.12549]
[1731647406414,23.776884,206.68,206.59,12.1012]
[1731647407214,161.6,206.72,206.59,12.1012]
[1731647407215,23.776884,206.7,206.59,12.1012]
[1731647407403,23.4569856,206.62,206.59,12.1012]
[1731647407598,23.4569856,206.63,206.59,12.1012]
[1731647408398,23.4569856,206.62,206.59,12.1012]
[1731647408600,23.4569856,206.63,206.59,12.1012]
[1731647409393,23.4569856,206.6,206.57,0.12549]
[1731647409590,23.4569856,206.58,206.57,0.12549]
[1731647410320,23.4569856,206.6,206.57,0.12549]
[1731647410621,23.4569856,206.64,206.58,16.9425]
[1731647410795,23.4569856,206.63,206.58,16.9425]
[1731647411204,23.4569856,206.66,206.59,23.4569856]
[1731647411512,23.4569856,206.65,206.58,40.3994856]
[1731647412206,23.4569856,206.66,206.59,23.4569856]
[1731647413003,23.4569856,206.63,206.58,16.9425]
[1731647413205,23.4569856,206.59,206.57,0.12549]
[1731647413421,23.4569856,206.58,206.57,0.12549]
[1731647414403,0.4932617,206.74,206.6,26.0364]
[1731647414600,23.4569856,206.67,206.6,6.0364]
[1731647414802,23.4569856,206.67,206.6,23.4569856]
[1731647415127,23.4569856,206.65,206.59,15.1363]
[1731647415328,0.12549,206.73,206.59,15.1363]
[1731647415830,23.776884,206.73,206.59,15.1363]
[1731647416324,23.776884,206.73,206.6,16.9408]
[1731647416325,23.4569856,206.66,206.6,16.9408]
[1731647417427,23.4569856,206.66,206.6,41.1421]
[1731647417729,23.4569856,206.65,206.6,41.1421]
[1731647418104,23.4569856,206.65,206.6,16.9408]
[1731647418327,23.4569856,206.66,206.6,16.9408]
[1731647418732,23.4569856,206.65,206.6,16.9408]
[1731647419816,23.4569856,206.66,206.6,16.9408]
[1731647420015,23.4569856,206.65,206.6,16.9408]
[1731647420533,23.4569856,206.66,206.6,16.9408]
[1731647421030,23.4569856,206.65,206.6,16.9408]
[1731647422718,23.4569856,206.63,206.6,16.9408]
[1731647422909,14.66668411,206.63,206.6,16.9408]
[1731647423104,14.66668411,206.64,206.6,16.9408]
[1731647423332,14.66668411,206.61,206.57,0.12549]
[1731647423516,23.776884,206.65,206.57,0.12549]
[1731647423719,14.66668411,206.58,206.57,0.12549]
[1731647424230,38.44356811,206.58,206.57,0.12549]
[1731647424531,23.776884,206.57,206.48,4.8429]
[1731647424726,14.66668411,206.51,206.48,4.8429]
[1731647424925,14.66668411,206.5,206.47,16.9511]
[1731647425318,14.66668411,206.49,206.47,12.1078]
[1731647425617,161.6,206.59,206.48,14.66668411]
[1731647425821,23.776884,206.62,206.47,16.9511]
[1731647426512,0.12549,206.61,206.47,16.9511]
[1731647426724,23.776884,206.62,206.47,16.9511]
[1731647427247,0.12549,206.6,206.47,12.1078]
[1731647427415,23.48309621,206.5,206.47,12.1078]
[1731647427735,23.48309621,206.49,206.47,12.1078]
[1731647428044,23.48309621,206.51,206.47,12.1078]
[1731647428344,23.48309621,206.53,206.47,12.1078]
[1731647428636,23.48309621,206.57,206.5,23.48309621]
[1731647428810,23.48309621,206.59,206.52,23.48309621]
[1731647429007,4.8397,206.63,206.48,20.0]
[1731647429312,4.839,206.65,206.52,16.9474]
[1731647429519,23.48309621,206.58,206.52,16.9474]
[1731647429727,23.48309621,206.55,206.52,16.9474]
[1731647430031,23.48309621,206.59,206.52,40.43049621]
[1731647431008,6.1507,206.66,206.52,40.43049621]
[1731647431009,23.48309621,206.62,206.55,35.58669621]
[1731647431344,11.4681,206.71,206.6,23.48309621]
[1731647431634,6.6304,206.71,206.56,16.5562]
[1731647431831,0.12549,206.7,206.56,16.5562]
[1731647432843,23.48309621,206.61,206.57,16.9433]
[1731647433018,23.48309621,206.59,206.57,16.9433]
[1731647433216,23.48309621,206.58,206.54,4.8414]
[1731647433737,23.48309621,206.58,206.54,16.9455]
[1731647434550,23.48309621,206.55,206.49,12.1068]
[1731647434719,23.48309621,206.5,206.47,4.8431]
[1731647435032,23.48309621,206.52,206.47,4.8431]
[1731647435413,23.48309621,206.53,206.47,4.8431]
[1731647435618,161.6,206.59,206.49,23.48309621]
[1731647435619,23.48309621,206.56,206.49,23.48309621]
[1731647435833,23.48309621,206.58,206.51,23.48309621]
[1731647436436,23.48309621,206.59,206.52,23.48309621]
[1731647436622,23.48309621,206.58,206.51,23.48309621]
[1731647436935,23.48309621,206.58,206.52,16.9474]
[1731647437538,23.48309621,206.53,206.47,12.1079]
[1731647437725,23.48309621,206.52,206.47,12.1079]
[1731647437925,4.8405,206.59,206.47,35.59099621]
[1731647438131,4.8405,206.59,206.47,12.1079]
[1731647438920,23.776884,206.6,206.47,12.1079]
[1731647439237,23.48309621,206.53,206.47,12.1079]
[1731647439438,23.48309621,206.54,206.47,35.59099621]
[1731647440042,23.48309621,206.53,206.47,16.9512]
[1731647440617,23.48309621,206.54,206.47,40.43429621]
[1731647441227,23.48309621,206.59,206.52,23.48309621]
[1731647441436,23.48309621,206.61,206.54,23.48309621]
[1731647442035,23.48309621,206.59,206.51,23.48309621]
[1731647442223,23.48309621,206.55,206.5,16.9491]
[1731647442434,23.48309621,206.51,206.48,20.0]
[1731647442726,161.6,206.62,206.45,40.7749]
[1731647442727,0.1,206.57,206.45,12.1089]
[1731647442940,23.776884,206.53,206.42,4.8443]
[1731647443256,23.48309621,206.47,206.42,4.8443]
[1731647443541,23.48309621,206.5,206.42,28.32739621]
[1731647443742,6.6292,206.59,206.43,0.12549]
[1731647444120,4.8407,206.58,206.47,23.48309621]
[1731647444320,15.964,206.62,206.5,23.48309621]
[1731647444538,15.964,206.62,206.51,23.48309621]
[1731647444718,23.48309621,206.58,206.51,23.48309621]
[1731647444928,23.48309621,206.59,206.51,23.48309621]
[1731647445626,23.48309621,206.59,206.52,23.48309621]
[1731647446235,23.48309621,206.59,206.53,16.9466]
[1731647446741,23.48309621,206.6,206.53,16.9466]
[1731647447039,23.48309621,206.59,206.53,16.9466]
[1731647447956,23.48309621,206.56,206.53,12.1047]
[1731647448142,23.48309621,206.54,206.48,16.9501]
[1731647448451,23.48309621,206.53,206.48,16.9501]
[1731647448645,23.48309621,206.57,206.5,23.48309621]
[1731647448842,23.48309621,206.57,206.48,16.9501]
[1731647448843,23.48309621,206.57,206.49,23.48309621]
[1731647449049,23.48309621,206.56,206.49,23.48309621]
[1731647449569,185.376884,206.62,206.51,23.48309621]
[1731647449570,23.48309621,206.58,206.51,23.48309621]
[1731647449728,23.48309621,206.6,206.52,23.48309621]
[1731647449924,23.48309621,206.6,206.53,16.9466]
[1731647450346,23.48309621,206.58,206.53,16.9466]
[1731647450735,23.48309621,206.6,206.54,20.0]
[1731647450940,23.48309621,206.62,206.55,23.48309621]
[1731647451123,23.48309621,206.65,206.58,23.48309621]
[1731647451329,0.12549,206.68,206.56,15.9812]
[1731647451627,10.989,206.69,206.56,39.46429621]
[1731647451628,23.48309621,206.63,206.56,39.46429621]
[1731647451829,23.48309621,206.63,206.57,16.9433]
[1731647452036,23.48309621,206.62,206.57,16.9433]
[1731647453050,23.48309621,206.63,206.57,16.9433]
[1731647453239,23.48309621,206.62,206.57,16.9433]
[1731647454445,23.48309621,206.63,206.57,16.9433]
[1731647454957,23.48309621,206.64,206.57,40.42639621]
[1731647456145,23.48309621,206.66,206.59,40.42479621]
[1731647456350,23.48309621,206.65,206.59,16.9417]
[1731647456656,23.48309621,206.64,206.59,16.9417]
[1731647457354,10.989,206.69,206.59,16.9417]
[1731647457355,23.48309621,206.62,206.59,12.1012]
[1731647458159,23.48309621,206.6,206.56,20.8223]
[1731647458457,23.48309621,206.64,206.56,56.40839621]
[1731647458659,23.48309621,206.65,206.57,23.48309621]
[1731647459252,23.48309621,206.66,206.59,16.9417]
[1731647459429,23.48309621,206.68,206.61,23.48309621]
[1731647460347,23.48309621,206.64,206.59,16.9417]
[1731647460553,23.48309621,206.6,206.56,15.9812]
[1731647460735,161.6,206.68,206.55,28.32429621]
[1731647460935,161.6,206.71,206.56,0.12549]
[1731647461155,20.0505,206.73,206.57,16.9433]
[1731647461550,0.12549,206.72,206.57,16.9433]
[1731647461877,20.0505,206.73,206.57,16.9433]
[1731647462035,20.0505,206.73,206.62,23.48309621]
[1731647462036,23.48309621,206.69,206.62,23.48309621]
[1731647462639,23.48309621,206.68,206.61,38.67799621]
[1731647463161,23.48309621,206.66,206.62,16.9393]
[1731647463345,23.48309621,206.65,206.62,16.9393]
[1731647464057,23.48309621,206.66,206.62,16.9393]
[1731647464945,23.48309621,206.63,206.62,12.0995]
[1731647465247,23.48309621,206.63,206.57,12.102]
[1731647465551,23.48309621,206.58,206.56,15.9206]
[1731647465762,23.48309621,206.58,206.54,4.8416]
[1731647465945,23.48309621,206.58,206.53,16.9466]
[1731647466150,23.48309621,206.59,206.53,16.9466]
[1731647466349,23.48309621,206.57,206.53,16.9466]
[1731647466545,23.48309621,206.56,206.53,12.1047]
[1731647466761,23.48309621,206.55,206.53,16.9466]
[1731647466948,23.48309621,206.57,206.53,16.9466]
[1731647467262,23.48309621,206.62,206.54,23.48309621]
[1731647467448,23.48309621,206.63,206.56,23.48309621]
[1731647467649,23.48309621,206.62,206.54,23.48309621]
[1731647468347,23.48309621,206.62,206.56,16.9442]
[1731647468752,23.48309621,206.59,206.56,12.103]
[1731647468971,23.48309621,206.61,206.56,16.9442]
[1731647469172,23.48309621,206.63,206.56,40.42729621]
[1731647469944,23.48309621,206.64,206.57,23.48309621]
[1731647470159,23.48309621,206.66,206.58,23.48309621]
[1731647470366,23.48309621,206.65,206.58,23.48309621]
[1731647470545,23.48309621,206.63,206.57,16.9433]
[1731647470752,23.48309621,206.61,206.57,16.9433]
[1731647470964,23.48309621,206.6,206.53,12.1046]
[1731647471166,0.12549,206.62,206.48,4.8429]
[1731647471352,23.48309621,206.51,206.48,16.9501]
[1731647471545,23.48309621,206.54,206.48,16.9501]
[1731647472356,161.72549,206.62,206.48,40.43319621]
[1731647472357,23.48309621,206.55,206.48,40.43319621]
[1731647473269,23.48309621,206.57,206.5,40.43219621]
[1731647473766,23.48309621,206.57,206.51,20.0]
[1731647474453,23.48309621,206.54,206.51,16.9481]
[1731647474657,23.48309621,206.53,206.51,16.9481]
[1731647474875,23.48309621,206.54,206.51,16.9481]
[1731647475051,23.48309621,206.62,206.53,23.48309621]
[1731647475247,23.48309621,206.6,206.53,23.48309621]
[1731647475453,23.48309621,206.58,206.51,40.43119621]
[1731647475764,23.48309621,206.58,206.52,20.0]
[1731647476070,23.48309621,206.6,206.54,16.9457]
[1731647476572,23.48309621,206.67,206.59,23.48309621]
[1731647476931,23.48309621,206.72,206.65,23.48309621]
[1731647477054,23.97635791,206.74,206.67,23.48309621]
[1731647478066,23.97635791,206.74,206.71,23.48309621]
[1731647478067,0.4932617,206.74,206.71,23.48309621]
[1731647478249,0.4932617,206.74,206.7,40.41539621]
[1731647478454,0.4932617,206.74,206.7,16.9323]
[1731647479372,23.48309621,206.71,206.64,16.9371]
[1731647479551,23.48309621,206.7,206.64,16.9371]
[1731647480258,0.4932617,206.74,206.69,23.48309621]
[1731647480456,0.4932617,206.74,206.72,23.48309621]
[1731647481192,0.4932617,206.74,206.73,23.48309621]
[1731647482067,0.4932617,206.74,206.72,28.32029621]
[1731647482269,0.4932617,206.74,206.72,4.8372]
[1731647483179,0.4932617,206.74,206.71,12.0941]
[1731647483367,0.4932617,206.74,206.72,23.48309621]
[1731647483991,0.4932617,206.74,206.71,40.41479621]
[1731647484170,0.4932617,206.74,206.72,23.48309621]
[1731647484486,0.4932617,206.74,206.73,23.48309621]
[1731647485361,0.4932617,206.74,206.73,28.32029621]
[1731647492473,0.4932617,206.74,206.73,40.38769]
[1731647492797,0.4932617,206.74,206.73,63.87078621]
[1731647492968,0.4932617,206.74,206.73,63.77078621]
[1731647494175,0.4932617,206.74,206.73,87.64767021]
[1731647494571,0.4932617,206.74,206.73,87.74767021]
[1731647494779,0.4932617,206.74,206.73,63.77078621]
[1731647497075,6.17e-05,206.74,206.73,63.77078621]
[1731647497595,6.17e-05,206.74,206.73,63.64529621]
[1731647498604,6.17e-05,206.74,206.73,43.64529621]
[1731647500009,6.17e-05,206.74,206.73,4.8372]
[1731647500303,6.17e-05,206.74,206.71,16.9316]
[1731647500504,6.17e-05,206.74,206.72,23.48309621]
[1731647500803,6.17e-05,206.74,206.73,23.48309621]
[1731647501005,6.17e-05,206.74,206.73,28.32029621]
[1731647501511,6.17e-05,206.74,206.73,48.32029621]
[1731647501680,6.17e-05,206.74,206.73,24.8372]
[1731647501880,6.17e-05,206.74,206.73,48.32029621]
[1731647502076,6.17e-05,206.74,206.73,28.32029621]
[1731647502304,6.17e-05,206.74,206.73,4.8372]
[1731647502509,6.17e-05,206.74,206.71,12.0941]
[1731647502797,14.65157419,206.74,206.71,12.0941]
[1731647502999,6.17e-05,206.74,206.71,16.9317]
[1731647503204,6.17e-05,206.74,206.71,12.0941]
[1731647503702,6.17e-05,206.74,206.66,12.0966]
[1731647503703,14.65151249,206.72,206.66,12.0966]
[1731647504004,6.1435617,206.74,206.68,14.65151249]
[1731647504896,6.1435617,206.74,206.68,23.44043549]
[1731647506398,6.1435617,206.74,206.67,23.44043549]
[1731647506697,23.44043549,206.68,206.63,4.8395]
[1731647506888,6.1435617,206.74,206.63,4.8395]
[1731647506889,23.44043549,206.7,206.63,28.27993549]
[1731647507084,23.44043549,206.69,206.63,4.8395]
[1731647507300,10.9806617,206.74,206.63,40.37883549]
[1731647507497,23.44043549,206.72,206.65,23.44043549]
[1731647507706,6.1435617,206.74,206.69,23.44043549]
[1731647508291,6.1435617,206.74,206.7,23.44043549]
[1731647508508,6.1435617,206.74,206.71,23.44043549]
[1731647508692,6.1435617,206.74,206.7,23.44043549]
[1731647509625,6.1435617,206.74,206.71,4.8376]
[1731647509791,6.1435617,206.74,206.71,28.27803549]
[1731647510497,6.17e-05,206.74,206.73,23.44043549]
[1731647510813,6.17e-05,206.74,206.72,23.44043549]
[1731647510995,6.17e-05,206.74,206.73,23.44043549]
[1731647511197,6.17e-05,206.74,206.72,23.44043549]
[1731647511630,23.44043549,206.73,206.66,12.0966]
[1731647511911,23.44043549,206.73,206.56,24.3048]
[1731647511912,23.44043549,206.68,206.61,35.54003549]
[1731647512118,23.44043549,206.7,206.63,23.44043549]
[1731647512608,23.44043549,206.67,206.61,12.0996]
[1731647512805,23.44043549,206.65,206.61,12.0996]
[1731647513012,23.44043549,206.68,206.61,35.54003549]
[1731647513826,23.44043549,206.68,206.61,40.38003549]
[1731647514196,23.44043549,206.71,206.63,23.44043549]
[1731647514395,23.44043549,206.72,206.65,23.44043549]
[1731647514601,23.44043549,206.71,206.64,23.44043549]
[1731647515499,23.44043549,206.7,206.63,23.44043549]
[1731647515717,23.44043549,206.7,206.64,4.8393]
[1731647516115,23.44043549,206.72,206.64,16.9376]
[1731647516293,29.94543549,206.73,206.66,23.44043549]
[1731647517009,23.44043549,206.72,206.65,23.44043549]
[1731647517711,23.44043549,206.72,206.65,28.27923549]
[1731647518023,23.44043549,206.69,206.64,12.0983]
[1731647518395,23.44043549,206.69,206.64,16.9376]
[1731647518614,23.44043549,206.69,206.64,12.0983]
[1731647518816,23.44043549,206.68,206.62,4.8396]
[1731647519125,23.44043549,206.69,206.62,28.28003549]
[1731647519315,23.44043549,206.7,206.62,28.28003549]
[1731647519898,23.44043549,206.69,206.62,40.37953549]
[1731647520826,23.44043549,206.71,206.64,23.44043549]
[1731647521023,34.78273549,206.73,206.66,23.44043549]
[1731647521522,23.44043549,206.71,206.64,23.44043549]
[1731647521818,23.44043549,206.7,206.63,23.44043549]
[1731647522822,23.44043549,206.67,206.64,12.0983]
[1731647523502,23.44043549,206.66,206.64,12.0983]
[1731647523808,23.44043549,206.65,206.6,12.1006]
[1731647524007,23.44043549,206.61,206.55,16.9446]
[1731647524315,23.44043549,206.59,206.55,16.9446]
[1731647524513,23.44043549,206.6,206.55,16.9446]
[1731647525305,23.44043549,206.66,206.59,23.44043549]
[1731647525513,23.44043549,206.67,206.6,23.44043549]
[1731647526325,23.44043549,206.66,206.59,23.44043549]
[1731647526501,23.44043549,206.6,206.55,12.1033]
[1731647526702,23.44043549,206.59,206.55,12.1033]
[1731647526898,23.44043549,206.6,206.55,12.1033]
[1731647527118,6.4096,206.68,206.55,12.1033]
[1731647527907,11.248,206.68,206.55,12.1033]
[1731647528422,23.44043549,206.67,206.59,23.44043549]
[1731647528918,23.44043549,206.67,206.6,4.8402]
[1731647529101,23.44043549,206.66,206.6,4.8402]
[1731647529936,23.44043549,206.66,206.6,16.9408]
[1731647530305,23.44043549,206.65,206.6,16.9408]
[1731647530926,14.66301457,206.65,206.58,14.66301457]
[1731647531805,14.66301457,206.66,206.59,14.66301457]
[1731647531998,22.7863617,206.74,206.64,14.66301457]
[1731647532202,14.66301457,206.72,206.64,14.66301457]
[1731647532422,14.66301457,206.71,206.64,14.66301457]
[1731647533217,14.66301457,206.69,206.64,4.8392]
[1731647533427,14.66301457,206.65,206.6,16.9407]
[1731647533603,14.66301457,206.64,206.6,16.9407]
[1731647533932,23.776884,206.71,206.62,14.66301457]
[1731647534128,4.8376,206.72,206.6,16.9407]
[1731647534328,14.66301457,206.71,206.6,16.9407]
[1731647534547,14.66301457,206.71,206.63,14.66301457]
[1731647535201,22.7863617,206.74,206.64,14.66301457]
[1731647535202,14.66301457,206.72,206.64,14.66301457]
[1731647535422,21.16507627,206.74,206.67,14.66301457]
[1731647536226,6.17e-05,206.74,206.68,14.66301457]
[1731647536441,6.17e-05,206.74,206.69,14.66301457]
[1731647536613,6.17e-05,206.74,206.72,14.66301457]
[1731647536812,6.17e-05,206.74,206.73,14.66301457]
[1731647537036,6.17e-05,206.74,206.73,19.50021457]
[1731647539118,6.17e-05,206.74,206.72,16.9309]
[1731647539323,14.66301457,206.73,206.68,15.2894]
[1731647539614,29.9691457,206.74,206.66,12.0965]
[1731647540124,29.9691457,206.74,206.66,16.9353]
[1731647540711,14.66301457,206.69,206.66,16.9353]
[1731647540927,23.45357227,206.69,206.66,16.9353]
[1731647541117,23.45357227,206.7,206.66,12.0965]
[1731647541535,23.45357227,206.73,206.66,35.55007227]
[1731647542238,6.17e-05,206.74,206.71,23.45357227]
[1731647542530,6.17e-05,206.74,206.73,23.45357227]
[1731647543320,6.17e-05,206.74,206.72,35.54707227]
[1731647544124,6.17e-05,206.74,206.72,23.45357227]
[1731647545435,6.17e-05,206.74,206.73,4.8372]
[1731647545633,23.45363397,206.74,206.65,4.839]
[1731647545819,23.45357227,206.7,206.67,12.0961]
[1731647546019,23.45357227,206.71,206.67,12.0961]
[1731647547930,23.45357227,206.69,206.65,4.839]
[1731647548237,23.45357227,206.67,206.63,16.9382]
[1731647549121,23.45357227,206.67,206.63,12.0988]
[1731647549915,0.1000617,206.74,206.63,12.0988]
[1731647549916,23.45357227,206.66,206.63,12.0988]
[1731647550117,23.45357227,206.64,206.59,4.8403]
[1731647550536,0.1,206.72,206.59,16.9415]
[1731647550537,23.45357227,206.65,206.59,16.9415]
[1731647551439,23.45357227,206.61,206.56,4.8409]
[1731647551740,23.45357227,206.61,206.54,35.55727227]
[1731647551741,23.45357227,206.57,206.54,12.1037]
[1731647551993,23.45357227,206.56,206.54,12.1037]
[1731647552325,23.45357227,206.59,206.54,12.1037]
[1731647552532,23.45357227,206.58,206.54,16.9453]
[1731647553138,23.45357227,206.57,206.54,16.9453]
[1731647553326,23.45357227,206.57,206.54,12.1037]
[1731647553527,23.45357227,206.56,206.49,23.45357227]
[1731647553748,23.45357227,206.54,206.49,4.8427]
[1731647554045,23.45357227,206.53,206.49,4.8427]
[1731647554552,23.45357227,206.57,206.49,40.40337227]
[1731647554745,23.45357227,206.59,206.52,23.45357227]
[1731647554930,23.45357227,206.58,206.51,23.45357227]
[1731647555248,23.45357227,206.54,206.49,16.9498]
[1731647555428,23.45357227,206.53,206.49,12.1071]
[1731647556027,23.45357227,206.53,206.47,4.8432]
[1731647556230,23.45357227,206.49,206.45,4.8436]
[1731647556640,23.45357227,206.5,206.45,4.8436]
[1731647556828,23.45357227,206.52,206.45,40.40657227]
[1731647557441,23.45357227,206.53,206.47,4.8433]
[1731647557754,23.45357227,206.5,206.45,16.953]
[1731647557932,23.45357227,206.46,206.4,12.1122]
[1731647558131,23.55357227,206.52,206.37,4.8455]
[1731647558132,23.45357227,206.42,206.37,4.8455]
[1731647558340,24.002374,206.5,206.37,4.8455]
[1731647558550,0.1,206.48,206.37,4.8455]
[1731647558943,0.1,206.48,206.35,12.1149]
[1731647559143,0.1,206.46,206.33,7.57633135]
[1731647559336,23.45357227,206.36,206.33,7.57633135]
[1731647559655,23.45357227,206.37,206.33,12.42273135]
[1731647559957,23.45357227,206.38,206.33,12.42273135]
[1731647560128,23.45357227,206.41,206.34,23.45357227]
[1731647560453,23.45357227,206.43,206.36,23.45357227]
[1731647560954,0.1,206.35,206.27,19.380856]
[1731647561126,23.45357227,206.28,206.19,15.6146]
[1731647561330,23.45357227,206.24,206.19,15.6146]
[1731647561530,23.45357227,206.24,206.19,32.5883]
[1731647561726,4.8468,206.32,206.2,4.8495]
[1731647561927,23.45357227,206.25,206.2,4.8495]
[1731647563054,23.45357227,206.27,206.21,4.8492]
[1731647563357,23.45357227,206.27,206.22,5.3422]
[1731647563926,0.12549,206.33,206.24,23.45357227]
[1731647564139,0.12549,206.33,206.28,23.45357227]
[1731647564353,0.12549,206.33,206.27,23.45357227]
[1731647564759,23.57906227,206.33,206.27,23.45357227]
[1731647565253,23.57906227,206.33,206.29,23.45357227]
[1731647565254,0.12549,206.33,206.29,23.45357227]
[1731647565555,0.12549,206.33,206.3,23.45357227]
[1731647565727,0.12549,206.33,206.27,16.9679]
[1731647565728,0.12549,206.33,206.29,23.45357227]
[1731647565935,0.12549,206.33,206.32,23.45357227]
[1731647566744,0.12549,206.33,206.32,43.45357227]